bitfinex/quotes_BTCUSD_20250326
["timestamp","ask_amount","ask_price","bid_price","bid_amount"]
[1743015053449,3.35136147,86582.0,86581.0,0.00029624]
[1743015054227,3.339941,86582.0,86581.0,0.00029624]
[1743015056844,3.49079697,86582.0,86581.0,0.00029624]
[1743015057469,3.61409697,86582.0,86581.0,0.00029624]
[1743015057724,0.3,86581.0,86575.0,0.59992]
[1743015057931,5.3,86581.0,86580.0,0.01019754]
[1743015058851,5.305,86581.0,86580.0,0.01019754]
[1743015059254,5.4314,86581.0,86556.0,0.0243618]
[1743015059468,5.4314,86581.0,86561.0,0.00242998]
[1743015059469,0.0464,86562.0,86561.0,0.00242998]
[1743015059661,0.0464,86562.0,86556.0,0.01197789]
[1743015059662,0.3,86561.0,86556.0,0.01197789]
[1743015059868,5.43292,86561.0,86556.0,0.01197789]
[1743015060077,0.3,86559.0,86556.0,0.01197789]
[1743015060279,0.3,86557.0,86556.0,0.01197789]
[1743015060487,5.3,86557.0,86556.0,0.01197789]
[1743015061462,5.43292,86557.0,86556.0,0.01197789]
[1743015061653,5.3,86557.0,86556.0,0.01197789]
[1743015061854,5.43296,86557.0,86556.0,0.01197789]
[1743015062394,5.43596,86557.0,86550.0,0.05]
[1743015062593,0.3,86555.0,86550.0,0.05]
[1743015062759,0.3,86553.0,86550.0,0.05]
[1743015062996,0.3,86551.0,86550.0,0.05]
[1743015063204,5.3,86551.0,86550.0,0.05]
[1743015063398,0.3,86551.0,86550.0,0.05]
[1743015063804,5.3,86551.0,86550.0,0.05]
[1743015064692,5.4316,86551.0,86550.0,0.05]
[1743015064908,5.4266,86551.0,86550.0,0.05]
[1743015065131,5.3498,86551.0,86550.0,0.02667612]
[1743015065334,3.093493,86551.0,86550.0,0.02332389]
[1743015065569,2.971588,86551.0,86550.0,0.62356389]
[1743015065770,2.969588,86551.0,86550.0,0.62356389]
[1743015065968,2.967588,86551.0,86550.0,0.62356389]
[1743015066346,2.972588,86551.0,86550.0,0.62356389]
[1743015066552,0.966741,86551.0,86550.0,0.62356389]
[1743015066683,0.932823,86551.0,86550.0,0.62356389]
[1743015067922,0.930823,86551.0,86550.0,0.62356389]
[1743015068129,0.928823,86551.0,86550.0,0.62356389]
[1743015068542,0.929823,86551.0,86550.0,0.62356389]
[1743015068746,0.929823,86551.0,86550.0,0.57356389]
[1743015068971,0.928823,86551.0,86550.0,0.57356389]
[1743015069174,0.927823,86551.0,86550.0,0.57356389]
[1743015071488,0.927823,86551.0,86550.0,0.52356389]
[1743015072796,0.927823,86551.0,86550.0,0.52373339]
[1743015074844,0.927823,86551.0,86550.0,0.47373339]
[1743015075932,0.94592539,86551.0,86550.0,0.47373339]
[1743015076828,0.31810239,86551.0,86550.0,0.47373339]
[1743015077035,0.31810239,86551.0,86550.0,0.55523339]
[1743015077874,0.31810239,86551.0,86550.0,0.78631339]
[1743015078292,0.31810239,86551.0,86550.0,0.79786739]
[1743015078499,0.31810239,86551.0,86550.0,0.78631339]
[1743015079029,0.01810239,86551.0,86550.0,0.55523339]
[1743015082876,0.000339,86557.0,86550.0,0.0816695]
[1743015083076,0.3,86555.0,86550.0,0.6004495]
[1743015083301,0.3,86553.0,86550.0,0.6004495]
[1743015083499,0.3,86551.0,86550.0,0.0001695]
[1743015083800,5.3,86551.0,86550.0,0.0001695]
[1743015083975,0.3,86551.0,86550.0,0.0001695]
[1743015084605,5.3,86551.0,86550.0,0.0001695]
[1743015085929,5.31810317,86551.0,86550.0,0.0001695]
[1743015086282,0.01810317,86551.0,86550.0,0.0001695]
[1743015086553,5.31910317,86551.0,86550.0,0.0001695]
[1743015087004,5.32010317,86551.0,86550.0,0.0001695]
[1743015087909,5.31910317,86551.0,86550.0,0.0001695]
[1743015088138,5.32010317,86551.0,86550.0,0.0001695]
[1743015088362,5.32210317,86551.0,86550.0,0.0001695]
[1743015089180,5.35685917,86551.0,86550.0,0.0001695]
[1743015092784,5.338756,86551.0,86550.0,0.0001695]
[1743015093448,4.413244,86551.0,86550.0,0.0001695]
[1743015094216,3.854334,86551.0,86550.0,0.0001695]
[1743015094395,3.722949,86551.0,86550.0,0.0001695]
[1743015094620,3.457477,86551.0,86550.0,0.0001695]
[1743015094749,2.498967,86551.0,86550.0,0.0001695]
[1743015095102,0.004,86551.0,86550.0,0.3951893]
[1743015095318,0.004,86551.0,86550.0,0.46750435]
[1743015095471,0.004,86551.0,86550.0,0.51713485]
[1743015095915,0.002,86551.0,86550.0,0.51713485]
[1743015096059,0.000339,86555.0,86554.0,0.242622]
[1743015096659,0.000339,86555.0,86554.0,0.36093343]
[1743015096883,0.1,86600.0,86579.0,0.01155]
[1743015097083,0.4031269,86580.0,86579.0,0.242552]
[1743015097286,0.1031269,86580.0,86579.0,0.242552]
[1743015097571,0.12122316,86580.0,86579.0,0.242552]
[1743015097763,0.12122316,86580.0,86579.0,0.319152]
[1743015097962,0.12122316,86580.0,86579.0,0.33369285]
[1743015098893,0.12422316,86580.0,86579.0,0.33369285]
[1743015099320,0.12122316,86580.0,86579.0,0.33369285]
[1743015099524,0.42122316,86580.0,86579.0,0.33369285]
[1743015099942,0.42122316,86580.0,86579.0,0.46601285]
[1743015101160,0.31809626,86580.0,86579.0,0.46601285]
[1743015102780,0.3,86580.0,86579.0,0.46601285]
[1743015103345,0.3,86580.0,86579.0,0.54790159]
[1743015103733,0.3,86580.0,86579.0,0.33369285]
[1743015103930,0.3,86580.0,86579.0,0.20868]
[1743015104085,0.3,86580.0,86579.0,0.13208]
[1743015104289,3.037069,86592.0,86576.0,0.13212]
[1743015104489,0.3,86591.0,86576.0,0.13212]
[1743015104935,0.3,86589.0,86576.0,0.13212]
[1743015105068,0.3,86589.0,86567.0,0.01454085]
[1743015105271,0.3,86587.0,86570.0,0.13208]
[1743015105479,0.3,86585.0,86564.0,0.242593]
[1743015105710,0.31809576,86583.0,86569.0,0.37764885]
[1743015105880,0.3,86581.0,86569.0,0.38919985]
[1743015106079,0.3,86579.0,86571.0,0.231023]
[1743015106286,0.3,86579.0,86570.0,0.231026]
[1743015106498,0.3,86579.0,86572.0,0.60016]
[1743015106698,0.3,86577.0,86572.0,0.60016]
[1743015106902,0.3,86575.0,86572.0,0.60016]
[1743015107120,1.026755,86574.0,86572.0,0.60016]
[1743015107328,0.969975,86573.0,86572.0,0.60016]
[1743015107507,0.3,86575.0,86572.0,0.60016]
[1743015107857,0.01809643,86573.0,86572.0,0.60016]
[1743015111731,0.31809643,86573.0,86572.0,0.60016]
[1743015112189,0.87815643,86573.0,86572.0,0.60016]
[1743015112389,0.31809643,86573.0,86572.0,0.60016]
[1743015112737,0.83766,86573.0,86572.0,0.60016]
[1743015113645,0.401699,86573.0,86572.0,0.60016]
[1743015114041,0.3,86573.0,86572.0,0.60016]
[1743015114335,0.3,86573.0,86572.0,0.831181]
[1743015115564,0.3,86573.0,86572.0,0.842732]
[1743015116368,0.3,86573.0,86572.0,0.60016]
[1743015116538,0.3,86573.0,86572.0,0.842732]
[1743015119142,0.3,86573.0,86572.0,0.98883285]
[1743015120622,0.01809605,86579.0,86572.0,0.98883285]
[1743015120838,0.01809605,86579.0,86578.0,0.25709585]
[1743015122866,0.01150405,86594.0,86580.0,0.230999]
[1743015123001,0.3,86592.0,86580.0,0.230999]
[1743015123361,0.3,86590.0,86581.0,0.230997]
[1743015123566,0.3,86588.0,86581.0,0.230997]
[1743015123727,0.3,86586.0,86583.0,0.230992]
[1743015124126,0.05750274,86597.0,86583.0,0.23111949]
[1743015124330,0.3,86595.0,86583.0,0.00012749]
[1743015124552,0.3,86593.0,86583.0,0.00012749]
[1743015124770,0.034733,86613.0,86593.0,0.011548]
[1743015124975,1.250738,86608.0,86597.0,0.230954]
[1743015125175,0.045,86614.0,86595.0,0.242505]
[1743015125176,0.345,86614.0,86600.0,0.230946]
[1743015125506,0.3,86607.0,86597.0,0.229952]
[1743015125723,0.3,86605.0,86597.0,0.229952]
[1743015125888,0.3,86603.0,86597.0,0.229952]
[1743015126068,0.3,86601.0,86596.0,0.011547]
[1743015126274,0.3,86601.0,86595.0,0.242505]
[1743015126461,0.3,86601.0,86596.0,0.230955]
[1743015126660,0.3,86601.0,86597.0,0.25367481]
[1743015126899,0.01809193,86607.0,86597.0,0.25267481]
[1743015127072,0.3,86605.0,86597.0,0.02272081]
[1743015127277,0.3,86603.0,86591.0,0.23097]
[1743015127459,0.301,86601.0,86592.0,0.60004]
[1743015127659,0.3,86601.0,86592.0,0.60004]
[1743015128060,0.3,86601.0,86592.0,0.831006]
[1743015128344,0.3,86601.0,86592.0,0.60004]
[1743015128543,0.3,86599.0,86592.0,0.60004]
[1743015128768,0.0486,86596.0,86592.0,0.60004]
[1743015128942,0.3,86594.0,86592.0,0.60004]
[1743015129145,5.3,86593.0,86592.0,0.60004]
[1743015131058,5.3,86593.0,86592.0,0.60104]
[1743015131751,5.3,86593.0,86592.0,0.60204]
[1743015132623,5.3,86593.0,86592.0,0.60104]
[1743015132859,0.43144,86593.0,86592.0,0.60104]
[1743015133128,5.43444,86593.0,86592.0,0.60004]
[1743015133325,5.45253561,86593.0,86592.0,0.60004]
[1743015133542,3.39227261,86593.0,86592.0,0.60004]
[1743015133753,2.24721261,86593.0,86592.0,0.60004]
[1743015134667,1.46240061,86593.0,86592.0,0.60004]
[1743015134874,1.19055961,86593.0,86592.0,0.60004]
[1743015135693,0.72906061,86593.0,86592.0,0.60004]
[1743015135904,0.65526261,86593.0,86592.0,0.60004]
[1743015136121,0.47360361,86593.0,86592.0,0.60004]
[1743015136492,0.47060361,86593.0,86592.0,0.60004]
[1743015136696,0.46860361,86593.0,86592.0,0.60004]
[1743015138448,0.46894221,86593.0,86592.0,0.60004]
[1743015140523,0.31843421,86593.0,86592.0,0.842556]
[1743015140753,0.31843421,86593.0,86592.0,0.831008]
[1743015140957,0.31843421,86593.0,86592.0,0.842556]
[1743015141208,0.01843421,86593.0,86592.0,0.973756]
[1743015141403,0.01843421,86593.0,86592.0,1.055056]
[1743015141965,0.01843421,86593.0,86592.0,1.06959685]
[1743015142395,0.01843421,86593.0,86592.0,1.11729685]
[1743015142695,0.0003386,86593.0,86592.0,1.11729685]
[1743015142904,0.0003386,86593.0,86592.0,1.11829685]
[1743015143387,0.0003386,86593.0,86592.0,1.11729685]
[1743015143623,0.0003386,86593.0,86592.0,1.14290436]
[1743015143952,0.0003386,86593.0,86592.0,1.01170436]
[1743015144148,1.2433496,86593.0,86592.0,0.60204]
[1743015144344,1.6584846,86593.0,86592.0,0.60204]
[1743015144546,1.047255,86593.0,86592.0,0.60204]
[1743015144749,0.99349,86593.0,86592.0,0.60204]
[1743015145108,1.00497623,86593.0,86592.0,0.60204]
[1743015145730,1.0230702,86593.0,86592.0,0.60204]
[1743015146573,1.3230702,86593.0,86592.0,0.60204]
[1743015147155,0.3295802,86593.0,86592.0,0.60204]
[1743015149222,0.31809397,86593.0,86592.0,0.60204]
[1743015149423,0.31809397,86593.0,86592.0,0.60004]
[1743015149782,0.31809397,86593.0,86592.0,0.60104]
[1743015150608,0.31809397,86593.0,86592.0,0.6012093]
[1743015151816,1.33199297,86593.0,86592.0,0.6012093]
[1743015152139,0.01809397,86593.0,86592.0,0.6772093]
[1743015152340,0.01809397,86593.0,86592.0,0.6012093]
[1743015152695,0.0003386,86597.0,86592.0,0.6012093]
[1743015152921,0.0003386,86597.0,86592.0,0.8321763]
[1743015153125,0.0003386,86597.0,86592.0,0.6012093]
[1743015153319,0.3,86595.0,86592.0,0.6012093]
[1743015153560,0.3,86593.0,86592.0,0.6002093]
[1743015153765,0.801142,86593.0,86592.0,0.6002093]
[1743015154283,0.64385254,86593.0,86592.0,0.6002093]
[1743015154487,0.53775554,86593.0,86592.0,0.6002093]
[1743015154689,0.53775554,86593.0,86592.0,0.6012093]
[1743015156266,0.53775554,86593.0,86592.0,0.6002093]
[1743015156627,0.53775554,86593.0,86592.0,0.6012093]
[1743015157068,0.0003386,86597.0,86592.0,0.6012093]
[1743015157382,0.3,86595.0,86592.0,0.6127573]
[1743015157582,0.3,86593.0,86592.0,0.6012093]
[1743015157966,0.3,86593.0,86592.0,0.6002093]
[1743015158302,0.3,86593.0,86592.0,0.8311763]
[1743015158799,0.0003386,86597.0,86592.0,0.8311763]
[1743015158800,0.01195119,86597.0,86592.0,0.8311763]
[1743015158941,0.3,86595.0,86592.0,0.8311763]
[1743015159143,0.3,86593.0,86592.0,0.8311763]
[1743015159559,0.3,86593.0,86592.0,0.6002093]
[1743015160269,0.0003386,86597.0,86592.0,0.6002093]
[1743015160464,0.3,86595.0,86592.0,0.6002093]
[1743015160667,0.3,86595.0,86592.0,0.6012093]
[1743015160843,0.3,86593.0,86592.0,0.6012093]
[1743015161181,0.3,86593.0,86592.0,0.6002093]
[1743015162163,0.0003386,86597.0,86592.0,0.6002093]
[1743015162400,0.3,86595.0,86592.0,0.6002093]
[1743015163148,0.3,86595.0,86592.0,0.90480324]
[1743015163281,0.0003386,86597.0,86595.0,0.23096]
[1743015163502,0.0003386,86597.0,86596.0,0.242504]
[1743015165212,0.0003386,86597.0,86596.0,0.25704485]
[1743015165843,0.01843006,86597.0,86596.0,0.25704485]
[1743015166621,0.01843006,86597.0,86596.0,0.33704485]
[1743015167216,0.18857402,86620.0,86608.0,0.242471]
[1743015167442,0.18857402,86620.0,86608.0,0.38781185]
[1743015167855,0.01842851,86609.0,86608.0,0.38781185]
[1743015168007,0.01842851,86609.0,86608.0,0.25701185]
[1743015168218,0.01842851,86609.0,86608.0,0.13076]
[1743015168441,0.01842851,86609.0,86608.0,0.373231]
[1743015169077,0.01842851,86609.0,86608.0,0.4832975]
[1743015169310,0.01842851,86609.0,86608.0,0.373231]
[1743015170599,0.01842851,86609.0,86608.0,0.374231]
[1743015171221,0.01842851,86609.0,86608.0,0.38877185]
[1743015171553,0.01842851,86609.0,86608.0,0.25801185]
[1743015172735,0.000339,86609.0,86608.0,0.25801185]
[1743015174035,0.000339,86609.0,86608.0,0.38361185]
[1743015174325,0.000339,86609.0,86608.0,0.49786949]
[1743015174526,0.000339,86609.0,86608.0,0.38361185]
[1743015175772,0.01842687,86609.0,86608.0,0.38361185]
[1743015177235,0.01842687,86609.0,86608.0,0.38261185]
[1743015177628,0.01842687,86609.0,86608.0,0.38561185]
[1743015178189,0.01842687,86609.0,86608.0,0.38661185]
[1743015180554,0.01842687,86609.0,86608.0,0.40919714]
[1743015182444,0.000339,86609.0,86608.0,0.40919714]
[1743015183445,0.000339,86609.0,86608.0,0.35989714]
[1743015183693,0.000339,86609.0,86608.0,0.41411714]
[1743015184065,0.000339,86609.0,86608.0,1.01395714]
[1743015185332,0.000339,86609.0,86608.0,0.99137185]
[1743015188473,0.000339,86609.0,86608.0,0.61838085]
[1743015188833,0.000339,86609.0,86608.0,0.60384]
[1743015189881,0.01808794,86612.0,86608.0,0.60384]
[1743015190080,0.01808794,86612.0,86608.0,0.60084]
[1743015190610,0.01808794,86612.0,86608.0,0.60284]
[1743015191030,0.01808794,86612.0,86608.0,0.59984]
[1743015191204,1.609439,86609.0,86608.0,0.60284]
[1743015191917,1.495629,86609.0,86608.0,0.60284]
[1743015193096,1.495629,86609.0,86608.0,0.59984]
[1743015193297,1.364091,86609.0,86608.0,0.59984]
[1743015193643,1.364091,86609.0,86608.0,0.60284]
[1743015194218,1.364091,86609.0,86608.0,0.59984]
[1743015194362,0.3,86609.0,86608.0,0.60184]
[1743015194577,2.657252,86609.0,86608.0,0.60184]
[1743015195073,1.369871,86609.0,86608.0,0.60184]
[1743015197430,1.38796088,86609.0,86608.0,0.60184]
[1743015200652,1.38829948,86609.0,86608.0,0.60184]
[1743015201631,1.10926148,86609.0,86608.0,0.60184]
[1743015201841,1.0911716,86609.0,86608.0,0.60184]
[1743015205204,0.3003386,86609.0,86608.0,0.60184]
[1743015205478,3.4799426,86609.0,86608.0,0.60184]
[1743015205699,3.1413266,86609.0,86608.0,0.60184]
[1743015205855,2.4357756,86609.0,86608.0,0.60184]
[1743015206043,2.3081166,86609.0,86608.0,0.60184]
[1743015209909,1.0925786,86609.0,86608.0,0.60184]
[1743015212268,1.0925786,86609.0,86608.0,0.6020092]
[1743015217713,1.0925786,86609.0,86608.0,0.5925892]
[1743015217908,1.1715786,86609.0,86608.0,0.5925892]
[1743015218417,1.2211786,86609.0,86608.0,0.5925892]
[1743015219439,1.2241786,86609.0,86608.0,0.5905892]
[1743015219867,1.2241786,86609.0,86608.0,0.5915892]
[1743015220308,1.2241786,86609.0,86608.0,0.5905892]
[1743015220645,1.2271786,86609.0,86608.0,0.5905892]
[1743015221047,0.4349386,86609.0,86608.0,0.5905892]
[1743015221250,5.3163356,86609.0,86608.0,0.5905892]
[1743015221727,5.380954,86609.0,86608.0,0.5905892]
[1743015224024,5.511314,86609.0,86608.0,0.5905892]
[1743015224230,0.5652986,86609.0,86608.0,0.5905892]
[1743015224436,5.4466956,86609.0,86608.0,0.5905892]
[1743015226909,5.51133397,86609.0,86608.0,0.5905892]
[1743015228276,5.36839997,86609.0,86608.0,0.5905892]
[1743015228875,5.3848553,86609.0,86608.0,0.5905892]
[1743015230295,5.40639175,86609.0,86608.0,0.5905892]
[1743015230496,5.40639175,86609.0,86608.0,0.51824229]
[1743015230695,5.34175338,86609.0,86608.0,0.51824229]
[1743015231918,5.3037616,86609.0,86608.0,0.51824229]
[1743015233515,4.7248236,86609.0,86608.0,0.51824229]
[1743015236830,4.7248236,86609.0,86608.0,0.0001692]
[1743015237860,3.7204536,86609.0,86608.0,0.0001692]
[1743015239071,3.7250846,86609.0,86608.0,0.0001692]
[1743015239425,4.1423846,86609.0,86608.0,0.0001692]
[1743015239990,4.20697625,86609.0,86608.0,0.0001692]
[1743015240300,4.22384599,86609.0,86608.0,0.0001692]
[1743015242532,5.95008799,86609.0,86608.0,0.0001692]
[1743015242727,5.81972799,86609.0,86608.0,0.0001692]
[1743015242910,5.95008799,86609.0,86608.0,0.0001692]
[1743015243116,5.95008799,86609.0,86608.0,7.062e-05]
[1743015251669,5.94708799,86609.0,86608.0,7.062e-05]
[1743015251851,5.94408799,86609.0,86608.0,7.062e-05]
[1743015252203,5.95008799,86609.0,86608.0,7.062e-05]
[1743015253211,5.95508799,86609.0,86608.0,7.062e-05]
[1743015253427,6.22515894,86609.0,86608.0,7.062e-05]
[1743015253598,6.29770152,86609.0,86608.0,7.062e-05]
[1743015254010,1.43084537,86609.0,86608.0,7.062e-05]
[1743015254208,1.39484879,86609.0,86608.0,7.062e-05]
[1743015254470,0.005,86598.0,86597.0,0.0001693]
[1743015254615,0.005,86598.0,86592.0,0.0001693]
[1743015254616,0.3,86597.0,86592.0,0.00016701]
[1743015254812,0.3,86595.0,86592.0,0.00016701]
[1743015255016,0.3,86593.0,86592.0,0.00016701]
[1743015255217,5.181397,86593.0,86592.0,0.00016701]
[1743015255759,5.26752655,86593.0,86564.0,0.60008]
[1743015255956,0.3,86591.0,86569.0,0.07552741]
[1743015256113,0.0767,86588.0,86569.0,0.00012741]
[1743015256298,0.3,86586.0,86569.0,0.00012741]
[1743015256505,0.3,86584.0,86569.0,0.00012741]
[1743015256751,0.3,86582.0,86569.0,0.00012741]
[1743015256993,0.3,86580.0,86569.0,0.00012741]
[1743015257320,0.3,86578.0,86569.0,0.00012741]
[1743015257527,0.3,86576.0,86569.0,0.00012741]
[1743015257707,0.3,86574.0,86569.0,0.00012741]
[1743015257909,0.3,86572.0,86569.0,0.00012741]
[1743015258231,0.3,86570.0,86569.0,0.00012741]
[1743015258504,3.69696,86570.0,86569.0,0.00012741]
[1743015258662,4.159594,86570.0,86569.0,0.00012741]
[1743015258869,4.17063,86570.0,86569.0,0.00012741]
[1743015259072,4.17063,86570.0,86569.0,0.00029681]
[1743015259268,4.1617979,86570.0,86569.0,0.00029681]
[1743015259712,3.7418509,86570.0,86569.0,0.00029681]
[1743015259910,3.6856089,86570.0,86569.0,0.00029681]
[1743015262678,2.7915929,86570.0,86569.0,0.00029681]
[1743015270149,2.7955929,86570.0,86569.0,0.00029681]
[1743015272594,2.9259929,86570.0,86569.0,0.00029681]
[1743015273692,2.7955929,86570.0,86569.0,0.00029681]
[1743015276103,0.0255379,86570.0,86569.0,0.00029681]
[1743015276326,4.3192109,86570.0,86569.0,0.00029681]
[1743015276453,4.3248559,86570.0,86569.0,0.00029681]
[1743015276675,4.2130869,86570.0,86569.0,0.00029681]
[1743015276874,4.2530869,86570.0,86569.0,0.00029681]
[1743015277323,4.1561739,86570.0,86569.0,0.00029681]
[1743015279169,0.5545799,86570.0,86569.0,0.00029681]
[1743015279378,0.4829899,86570.0,86569.0,0.00029681]
[1743015280819,0.4789899,86570.0,86569.0,0.00029681]
[1743015281242,0.4799899,86570.0,86569.0,0.00029681]
[1743015281745,0.4789899,86570.0,86569.0,0.00029681]
[1743015283007,0.3615379,86570.0,86569.0,0.08309681]
[1743015283689,0.4668569,86570.0,86569.0,0.08309681]
[1743015283889,0.4668569,86570.0,86569.0,0.31412581]
[1743015284167,0.3615379,86570.0,86569.0,0.31412581]
[1743015284334,0.3615379,86570.0,86569.0,0.32567681]
[1743015287495,0.3615379,86570.0,86569.0,0.34021766]
[1743015287912,0.0615379,86570.0,86569.0,0.34021766]
[1743015289482,0.0215379,86570.0,86569.0,0.34021766]
[1743015289729,0.2624909,86570.0,86569.0,0.34021766]
[1743015289935,0.2039109,86570.0,86569.0,0.34021766]
[1743015290149,0.0215379,86570.0,86569.0,0.34021766]
[1743015291367,0.05597894,86570.0,86569.0,0.34021766]
[1743015291796,0.05597894,86570.0,86569.0,0.38791766]
[1743015292812,0.0215379,86570.0,86569.0,0.38791766]
[1743015296336,0.0215379,86570.0,86569.0,0.98803766]
[1743015301921,0.0215379,86570.0,86569.0,0.60041681]
[1743015302702,0.0215379,86570.0,86569.0,0.84299681]
[1743015307291,0.0215379,86570.0,86569.0,0.60041681]
[1743015307526,0.0215379,86570.0,86569.0,0.83144581]
[1743015307770,0.0215379,86570.0,86569.0,0.60041681]
[1743015307985,2.2916569,86570.0,86569.0,0.60041681]
[1743015308233,3.6241979,86570.0,86569.0,0.60041681]
[1743015308437,3.3122699,86570.0,86569.0,0.60041681]
[1743015309804,3.3122699,86570.0,86569.0,0.00029681]
[1743015310228,3.3132699,86570.0,86569.0,0.00029681]
[1743015310847,3.3142699,86570.0,86569.0,0.00029681]
[1743015313915,0.3235379,86570.0,86569.0,0.00029681]
[1743015314116,4.6911989,86570.0,86569.0,0.00029681]
[1743015314337,4.8225319,86570.0,86569.0,0.00029681]
[1743015314629,4.6911989,86570.0,86569.0,0.00029681]
[1743015316641,4.8158989,86570.0,86569.0,0.00029681]
[1743015316842,4.88034012,86570.0,86569.0,0.00029681]
[1743015317049,4.88434012,86570.0,86569.0,0.00029681]
[1743015317512,4.75764012,86570.0,86569.0,0.00029681]
[1743015317722,0.08997912,86570.0,86569.0,0.00029681]
[1743015318234,0.0255379,86570.0,86569.0,0.24287681]
[1743015318435,0.0255379,86570.0,86569.0,0.25741766]
[1743015319407,0.0235379,86570.0,86569.0,0.25741766]
[1743015319544,0.0215379,86570.0,86569.0,0.25741766]
[1743015319967,0.0215379,86570.0,86569.0,0.43711766]
[1743015320205,0.00740365,86570.0,86569.0,0.53833183]
[1743015321576,0.00740365,86570.0,86569.0,0.43711766]
[1743015321777,0.00740365,86570.0,86569.0,0.38781766]
[1743015322127,0.00740365,86570.0,86569.0,0.98797766]
[1743015322503,0.00740365,86570.0,86569.0,0.85757766]
[1743015330264,0.00740365,86570.0,86569.0,0.98793766]
[1743015332986,0.01132683,86581.0,86573.0,0.231018]
[1743015333186,0.3,86579.0,86575.0,0.231013]
[1743015333395,0.3,86577.0,86574.0,0.231011]
[1743015333650,0.19529,86576.0,86574.0,0.231011]
[1743015334480,0.02146855,86575.0,86574.0,0.231016]
[1743015334689,0.61683155,86575.0,86574.0,0.231016]
[1743015335420,0.595363,86575.0,86573.0,0.01454085]
[1743015335633,0.76494,86576.0,86573.0,0.01454085]
[1743015335787,3.655729,86585.0,86573.0,0.01454085]
[1743015336410,3.655729,86585.0,86574.0,0.60008]
[1743015337002,3.656729,86585.0,86574.0,0.60008]
[1743015337380,0.3,86583.0,86574.0,0.60008]
[1743015337579,0.3,86581.0,86574.0,0.60008]
[1743015337712,0.858745,86580.0,86574.0,0.60008]
[1743015337918,0.3,86579.0,86574.0,0.60008]
[1743015338113,0.3,86577.0,86574.0,0.60008]
[1743015338319,0.757993,86576.0,86574.0,0.60008]
[1743015338745,0.02146514,86575.0,86574.0,0.60008]
[1743015338959,0.61664814,86575.0,86574.0,0.60008]
[1743015339198,0.70787814,86575.0,86574.0,0.60008]
[1743015339478,1.03982414,86575.0,86574.0,0.60008]
[1743015339631,0.81482414,86575.0,86574.0,0.60008]
[1743015340038,0.793359,86575.0,86574.0,0.60008]
[1743015340219,1.150599,86576.0,86574.0,0.60008]
[1743015340420,1.179572,86576.0,86574.0,0.60008]
[1743015342599,0.02147221,86575.0,86574.0,0.60008]
[1743015342813,0.81392321,86575.0,86574.0,0.60008]
[1743015343220,1.11392321,86575.0,86574.0,0.60008]
[1743015346287,0.44427321,86575.0,86574.0,0.60008]
[1743015346443,0.32147221,86575.0,86574.0,0.60008]
[1743015346650,0.56408321,86575.0,86574.0,0.60008]
[1743015350380,0.59852646,86575.0,86574.0,0.5479831]
[1743015351366,0.35591546,86575.0,86574.0,0.5479831]
[1743015351917,1.18926146,86575.0,86574.0,0.5479831]
[1743015353747,1.22960026,86575.0,86574.0,0.5479831]
[1743015354657,1.22960026,86575.0,86570.0,0.0001694]
[1743015354658,0.3,86574.0,86570.0,0.0001694]
[1743015354862,0.0775,86573.0,86570.0,0.0001694]
[1743015355075,0.3,86571.0,86570.0,0.0001694]
[1743015355315,4.448414,86571.0,86570.0,0.0001694]
[1743015355540,3.455261,86571.0,86570.0,0.0001694]
[1743015355741,2.209419,86571.0,86570.0,0.0001694]
[1743015355949,0.854335,86571.0,86570.0,0.0001694]
[1743015356159,0.86917176,86571.0,86570.0,0.0001694]
[1743015356578,0.87017176,86571.0,86570.0,0.0001694]
[1743015357190,0.92608722,86571.0,86570.0,0.0001694]
[1743015357810,0.92708722,86571.0,86570.0,0.0001694]
[1743015358066,0.68204646,86571.0,86570.0,0.0001694]
[1743015358267,0.72204646,86571.0,86570.0,0.0001694]
[1743015358469,0.70626646,86571.0,86570.0,0.0001694]
[1743015358631,0.650351,86571.0,86570.0,0.0001694]
[1743015360940,0.730151,86571.0,86570.0,0.0001694]
[1743015361092,0.75164094,86571.0,86570.0,0.0001694]
[1743015363571,0.730151,86571.0,86570.0,0.0001694]
[1743015366344,0.690151,86571.0,86570.0,0.0001694]
[1743015371257,0.3818,86571.0,86570.0,0.0001694]
[1743015371467,5.263197,86571.0,86570.0,0.0001694]
[1743015371748,4.898988,86571.0,86570.0,0.0001694]
[1743015372629,4.872488,86571.0,86570.0,0.0001694]
[1743015372831,2.822934,86571.0,86570.0,0.0001694]
[1743015373088,1.135341,86571.0,86570.0,0.0001694]
[1743015373256,0.539746,86571.0,86570.0,0.0001694]
[1743015374824,0.510452,86571.0,86570.0,0.0001694]
[1743015375027,0.439052,86571.0,86570.0,0.0001694]
[1743015375312,0.46609362,86571.0,86570.0,0.0001694]
[1743015376973,0.51579362,86571.0,86570.0,0.0001694]
[1743015377600,0.46609362,86571.0,86570.0,0.0001694]
[1743015378373,0.48760083,86571.0,86570.0,0.0001694]
[1743015380999,0.48793963,86571.0,86570.0,0.0001694]
[1743015386483,0.26752863,86571.0,86570.0,0.0001694]
[1743015387481,4.16264663,86571.0,86570.0,0.0001694]
[1743015387750,4.86727763,86571.0,86570.0,0.0001694]
[1743015387962,4.78546563,86571.0,86570.0,0.0001694]
[1743015388163,4.72109663,86571.0,86570.0,0.0001694]
[1743015388361,0.3,86570.0,86568.0,0.54848259]
[1743015388507,4.855598,86570.0,86568.0,0.54860956]
[1743015388704,4.539716,86569.0,86568.0,0.54860956]
[1743015388907,4.584716,86569.0,86568.0,0.54860956]
[1743015390230,4.60622321,86569.0,86568.0,0.54860956]
[1743015390563,4.25962321,86569.0,86568.0,0.54860956]
[1743015391165,4.28083757,86569.0,86568.0,0.54860956]
[1743015391548,4.37986427,86569.0,86568.0,0.54860956]
[1743015392145,3.56453327,86569.0,86568.0,0.54860956]
[1743015392883,2.08337327,86569.0,86568.0,0.54860956]
[1743015393100,2.01979064,86569.0,86568.0,0.54860956]
[1743015393442,2.02079064,86569.0,86568.0,0.54860956]
[1743015393832,1.99957628,86569.0,86568.0,0.54860956]
[1743015394024,1.99957628,86569.0,86568.0,0.54877896]
[1743015394228,0.35795128,86569.0,86568.0,0.54877896]
[1743015396316,0.35795128,86569.0,86568.0,0.00029637]
[1743015397364,1.50942928,86569.0,86568.0,0.00029637]
[1743015397574,5.61042828,86569.0,86568.0,0.00029637]